lending/lending_fUSD_20240807
["ID","MTS","AMOUNT","RATE_DAILY","PERIOD"]
[334408021,1723047116469,228.45863801,8e-05,2]
[334408022,1723047118449,1184.51400069,4.848e-05,2]
[334408023,1723047121155,210.97297228,5e-05,2]
[334408024,1723047122445,155.0,5e-05,2]
[334408025,1723047127187,231.82409563,5e-05,2]
[334408026,1723047128076,158.93675276,5e-05,2]
[334408027,1723047129418,454.39810402,4.848e-05,2]
[334408028,1723047129893,921.16736327,5e-05,2]
[334408029,1723047131072,1370.91176247,5e-05,2]
[334408030,1723047132437,185.72175742,5e-05,2]
[334408031,1723047132980,962.114681,5e-05,2]
[334408032,1723047135989,22648.60761236,4.848e-05,2]
[334408033,1723047142204,15476.78696175,5e-05,2]
[334408034,1723047147382,185.72175742,5e-05,2]
[334408035,1723047147456,947.92262883,4.848e-05,2]
[334408036,1723047150697,2145.03106891,5e-05,2]
[334408037,1723047152054,1275.10393157,4.848e-05,2]
[334408038,1723047152858,2340.89780687,5e-05,2]
[334408039,1723047153461,649.5964416,4.848e-05,2]
[334408040,1723047154027,476.7534528,5e-05,2]
[334408041,1723047154600,686.73269963,5.876e-05,2]
[334408042,1723047160913,259.66752911,4.848e-05,2]
[334408043,1723047162768,1176.45926667,5.876e-05,2]
[334408044,1723047163066,158.93675276,5.876e-05,2]
[334408045,1723047163537,248.33722146,5.876e-05,2]
[334408046,1723047164406,1184.51400069,4.848e-05,2]
[334408047,1723047166943,242.6980416,5.876e-05,2]
[334408048,1723047168428,1500.0,5.876e-05,2]
[334408049,1723047168985,962.114681,5.876e-05,2]
[334408050,1723047169642,67015.95796994,5.876e-05,2]
[334408051,1723047169677,2839.98033625,5.876e-05,2]
[334408052,1723047171269,400.0,5.876e-05,2]
[334408053,1723047171952,155.0,5.876e-05,2]
[334408054,1723047176598,35713.01941175,5.876e-05,2]
[334408055,1723047179572,436.88212083,5.876e-05,2]
[334408056,1723047179833,921.16736327,5.876e-05,2]
[334408057,1723047185999,1370.91176247,5.876e-05,2]
[334408058,1723047197939,1508.21506145,5.876e-05,2]
[334408059,1723047198146,15470.32015955,5.876e-05,2]
[334408060,1723047198371,500.0,0.00024932,120]
[334408061,1723047201039,476.7534528,5.876e-05,2]
[334408062,1723047202006,1275.10393157,5.876e-05,2]
[334408063,1723047202479,649.5964416,5.876e-05,2]
[334408064,1723047203591,686.73269963,5.876e-05,2]
[334408065,1723047203804,2340.89780687,5.876e-05,2]
[334408066,1723047205028,962.114681,5.876e-05,2]
[334408067,1723047208641,2145.03106891,5.876e-05,2]
[334408068,1723047211747,1176.45926667,5.876e-05,2]
[334408069,1723047216401,441.0268853,5.876e-05,2]
[334408070,1723047217516,35713.01941175,7.122e-05,2]
[334408071,1723047218259,972.12808756,7.122e-05,2]
[334408072,1723047220711,921.16736327,7.122e-05,2]
[334408073,1723047220763,155.0,7.122e-05,2]
[334408074,1723047229642,1989.25149824,7.122e-05,2]
[334408075,1723047232195,215.41391377,7.122e-05,2]
[334408076,1723047236003,1370.91176247,7.122e-05,2]
[334408077,1723047237814,2462.70854725,7.122e-05,2]
[334408078,1723047252679,2145.03106891,7.122e-05,2]
[334408079,1723047255469,649.5964416,7.122e-05,2]
[334408080,1723047257003,1275.10393157,7.122e-05,2]
[334408081,1723047261032,476.7534528,7.122e-05,2]
[334408082,1723047272521,35713.01941175,7.122e-05,2]
[334408083,1723047274935,962.114681,8.633e-05,2]
[334408084,1723047275592,686.73269963,7.122e-05,2]
[334408085,1723047281785,1176.45926667,8.633e-05,2]
[334408086,1723047287845,921.16736327,8.633e-05,2]
[334408087,1723047291013,1370.91176247,8.633e-05,2]
[334408088,1723047322650,2145.03106891,8.633e-05,2]
[334408089,1723047447421,1699.56,0.00025,60]
[334408091,1723047955400,2716.62778489,6.94e-05,2]
[334408092,1723047991345,150.0,0.00024833,120]
[334408097,1723048232614,-205.0,9.8e-05,2]
[334408098,1723048232624,-1118.01385731,9.95e-05,2]
[334408099,1723048232635,-578.81421469,9.95e-05,2]
[334408100,1723048232644,-54.51578531,9.999e-05,2]
[334408101,1723048232682,-245.48421469,9.999e-05,2]
[334408102,1723048232691,-300.0,9.999e-05,2]
[334408103,1723048232701,-155.0,0.0001,2]
[334408104,1723048232711,-205.40364118,0.0001,2]
[334408105,1723048232720,-3978.09066242,0.0001,2]
[334408106,1723048232730,-519.91345954,0.0001,2]
[334408107,1723048232742,-1550.0,0.0001,2]
[334408108,1723048232751,-250.0,0.00010445,2]
[334408109,1723048232760,-150.0,0.00010463,2]
[334408110,1723048232770,-1275.10393157,0.00010464,2]
[334408111,1723048232779,-649.5964416,0.00010464,2]
[334408112,1723048232789,-476.7534528,0.00010464,2]
[334408113,1723048232798,-686.73269963,0.00010464,2]
[334408114,1723048232807,-304.00249078,0.00010464,2]
[334408115,1723048232817,-1176.45926667,0.00010464,2]
[334408116,1723048232826,-556.98384838,0.00010464,2]
[334408117,1723048232837,-1370.91176247,0.00010464,2]
[334408118,1723048232847,-2145.03106891,0.00010464,2]
[334408119,1723048232857,-3781.4284,0.000106,2]
[334408120,1723048232867,-7781.74739942,0.000107,2]
[334408121,1723048232878,-1093.62995456,0.000107,2]
[334408122,1723048232889,-650.14882909,0.000107,2]
[334408123,1723048232900,-667.36237526,0.000107,2]
[334408124,1723048232913,-6606.6,0.000107,2]
[334408125,1723048232924,-508.47198714,0.000107,2]
[334408126,1723048232939,-341.42630098,0.000107,2]
[334408127,1723048232951,-418.90217464,0.000107,2]
[334408128,1723048232963,-1121.25510711,0.000107,2]
[334408132,1723048238416,-544.37084928,0.000107,2]
[334408136,1723048238481,-475.14527595,0.000107,2]
[334408137,1723048238493,-279.36,0.000107,2]
[334408138,1723048238558,-314.21,0.000107,2]
[334408139,1723048238793,-2425.88576,0.000107,2]
[334408178,1723048240690,-3449.06958226,0.000107,2]
[334408180,1723048240703,-2837.74696614,0.000107,2]
[334408209,1723048243542,-11199.67287327,0.000107,2]
[334408210,1723048243554,-562.27,0.000107,2]
[334408211,1723048243625,-58722.7245649,0.000107,2]
[334408212,1723048243636,-14143.7553,0.000107,2]
[334408213,1723048243646,-2000.0,0.000107,2]
[334408214,1723048243657,-61666.25,0.000107,2]
[334408215,1723048243668,-1182.3774417,0.00010899,2]
[334408216,1723048243678,-499.99,0.00010899,2]
[334408217,1723048243688,-169.46887535,0.00010902,2]
[334408218,1723048243699,-23900.0,0.00010958,2]
[334408219,1723048243709,-250.0,0.00010959,2]
[334408220,1723048243720,-427.19,0.00010996,2]
[334408221,1723048243730,-877.9361014,0.00010997,2]
[334408222,1723048243740,-531.3,0.00010999,2]
[334408223,1723048243750,-420.0,0.00010999,2]
[334408224,1723048243763,-420.0,0.00010999,2]
[334408225,1723048243773,-500.0,0.00010999,2]
[334408226,1723048243783,-500.0,0.00010999,2]
[334408227,1723048243793,-500.0,0.00010999,2]
[334408228,1723048243802,-262.21805734,0.00010999,2]
[334408229,1723048243812,-178327.1752708,0.00011,2]
[334408230,1723048243827,-403.10790375,0.00011,2]
[334408231,1723048243839,-1325.20799028,0.00011,2]
[334408233,1723048243854,-281.19,0.00011,2]
[334408235,1723048243865,-846.9893815,0.00011,2]
[334408237,1723048243877,-353.45656742,0.00011,2]
[334408239,1723048243889,-73325.23097673,0.00011,2]
[334408241,1723048243902,-110931.50000003,0.00011,2]
[334408248,1723048244444,-4607.26195242,0.00011,2]
[334408263,1723048246485,-422.24066894,0.00011,2]
[334408266,1723048246548,-1689.57717869,0.00011,2]
[334408267,1723048246562,-380.67038674,0.00011,2]
[334408268,1723048246574,-1406.15,0.00011,2]
[334408269,1723048246586,-701.72481743,0.00011,2]
[334408270,1723048246598,-1564.47600514,0.00011,2]
[334408271,1723048246610,-1278.44042038,0.00011,2]
[334408272,1723048246625,-776.31930374,0.00011,2]
[334408273,1723048246637,-808.94061466,0.00011,2]
[334408274,1723048246649,-432.27653367,0.00011,2]
[334408275,1723048246688,-358.54738649,0.00011,2]
[334408276,1723048246700,-9412.37391485,0.00011,2]
[334408277,1723048246751,-8571.89705668,0.00011,2]
[334408278,1723048246765,-2318.42279138,0.00011,2]
[334408279,1723048350721,150.0,0.00024707,120]
[334408293,1723048950799,150.0,0.00024264,120]
[334408294,1723048997641,500.0,0.00024999,120]
[334408295,1723049190748,150.0,0.00024363,120]
[334408331,1723049431926,-554.02083,9.949e-05,2]
[334408333,1723049431939,-226.93917,9.949e-05,2]
[334408335,1723049431949,-303.72513875,0.00010267,2]
[334408336,1723049431982,-1360.43545425,0.00010267,2]
[334408337,1723049431991,-150.0,0.00010499,2]
[334408338,1723049432002,-300.0,0.00010499,2]
[334408339,1723049432011,-785.01893976,0.000105,2]
[334408340,1723049432027,-533.92040024,0.000105,2]
[334408341,1723049432039,-544.0998858,0.000105,2]
[334408342,1723049432099,-382.8044,0.000105,2]
[334408346,1723049437675,-6754.1563742,0.000105,2]
[334408347,1723049437686,-7231.5072,0.000105,2]
[334408348,1723049437696,-150.0,0.00010575,2]
[334408349,1723049437706,-13767.73952048,0.00010575,2]
[334408350,1723049437716,-2893.28718822,0.000106,2]
[334408351,1723049437734,-609.68908,0.000106,2]
[334408354,1723049439634,-2488.0179701,0.000106,2]
[334408355,1723049440570,-395.249745,0.000106,2]
[334408356,1723049440583,-49617.89999999,0.000106,2]
[334408357,1723049440596,-727.40483639,0.000106,2]
[334408364,1723049443017,-632.93440001,0.000106,2]
[334408365,1723049443029,-5523.42262638,0.000106,2]
[334408385,1723049447204,-1658.0746,0.000106,2]
[334408386,1723049447217,-29383.82935391,0.000106,2]
[334408387,1723049447229,-1000.0,0.000109,2]
[334408388,1723049447239,-2500.0,0.000109,2]
[334408389,1723049447249,-104867.90042914,0.00011,2]
[334408390,1723049447259,-567.04126,0.00011,2]
[334408391,1723049447268,-1064.13969753,0.00011005,2]
[334408392,1723049447278,-211.62746688,0.00011105,2]
[334408393,1723049447288,-164.33652674,0.00011105,2]
[334408394,1723049447298,-359.26552808,0.00011105,2]
[334408395,1723049447307,-9206.011315,0.00011105,2]
[334408396,1723049595959,500.0,0.00025,120]
[334408397,1723049791224,150.0,0.00024327,120]
[334408398,1723050198784,500.0,0.00025,120]
[334408399,1723050631808,-482.99531256,0.00010744,2]
[334408401,1723050631819,-239.34327444,0.00010744,2]
[334408403,1723050631829,-300.0,0.00010899,2]
[334408405,1723050631838,-377.15841067,0.000109,2]
[334408407,1723050631849,-488.29864495,0.000109,2]
[334408409,1723050631924,-1445.77865243,0.000109,2]
[334408410,1723050631935,-377.86782155,0.000109,2]
[334408411,1723050631946,-3347.07412977,0.000109,2]
[334408412,1723050631957,-2358.18069036,0.000109,2]
[334408413,1723050631968,-1042.5,0.000109,2]
[334408414,1723050631983,-7880.17915027,0.000109,2]
[334408415,1723050631993,-335.4322,0.00011086,2]
[334408416,1723050632003,-1706.22711397,0.00011105,2]
[334408417,1723050632012,-270.46597516,0.00011105,2]
[334408418,1723050632021,-1297.73941226,0.00011105,2]
[334408419,1723050632030,-5401.5400912,0.00011105,2]
[334408420,1723050632040,-3119.70333999,0.00011105,2]
[334408421,1723050632049,-298.52611506,0.00011105,2]
[334408422,1723050632059,-968.12476764,0.00011105,2]
[334408423,1723050632068,-1738.76964944,0.00011105,2]
[334408424,1723050632077,-10530.0262807,0.00011105,2]
[334408425,1723050632087,-719.68870544,0.00011105,2]
[334408426,1723050632097,-165.44102244,0.00011105,2]
[334408427,1723050632106,-155.0,0.00011105,2]
[334408428,1723050632116,-653.37427882,0.00011105,2]
[334408429,1723050632126,-594.81380735,0.00011105,2]
[334408430,1723050632135,-1496.87094358,0.00011105,2]
[334408431,1723050632145,-2262.85941922,0.00011105,2]
[334408432,1723050632155,-522.06611583,0.00011105,2]
[334408433,1723050632164,-203.33375775,0.00011105,2]
[334408434,1723050632176,-155.0,0.00011105,2]
[334408436,1723050632189,-493.40828131,0.00011105,2]
[334408438,1723050632199,-164.9628186,0.00011105,2]
[334408439,1723050632208,-3402.9798974,0.00011105,2]
[334408441,1723050632219,-532.06069874,0.00011105,2]
[334408443,1723050632228,-1050.7613751,0.00011105,2]
[334408445,1723050632237,-200.42850144,0.00011105,2]
[334408447,1723050632246,-155.3786545,0.00011105,2]
[334408449,1723050632256,-164.31632358,0.00011105,2]
[334408451,1723050632266,-1074.23899927,0.00011105,2]
[334408453,1723050632275,-628.3730026,0.00011105,2]
[334408454,1723050632284,-155.0,0.00011105,2]
[334408455,1723050632294,-243.154171,0.00011105,2]
[334408456,1723050632303,-484.99646143,0.00011105,2]
[334408457,1723050632313,-197.05301904,0.00011105,2]
[334408458,1723050632322,-65.15500292,0.00011105,2]
[334408459,1723050632333,-220.80129694,0.00011105,2]
[334408460,1723050632343,-357.30635393,0.00011105,2]
[334408461,1723050632352,-212.28111413,0.00011105,2]
[334408462,1723050632366,-388.22460686,0.00011105,2]
[334408463,1723050632377,-3080.91987303,0.00011105,2]
[334408464,1723050632387,-268.0026199,0.00011105,2]
[334408465,1723050632403,-205.85700732,0.00011105,2]
[334408466,1723050632412,-206.68578726,0.00011105,2]
[334408467,1723050632421,-328.11060008,0.00011105,2]
[334408468,1723050632431,-202.81555917,0.00011105,2]
[334408469,1723050632440,-265.33096073,0.00011105,2]
[334408470,1723050632450,-181.65187256,0.00011105,2]
[334408471,1723050632459,-255.09228319,0.00011105,2]
[334408472,1723050632468,-1138.64679831,0.00011105,2]
[334408473,1723050632477,-155.0,0.00011105,2]
[334408474,1723050632486,-528.71768008,0.00011105,2]
[334408475,1723050632495,-218.82650033,0.00011105,2]
[334408476,1723050632505,-367.71679801,0.00011105,2]
[334408477,1723050632514,-236.24535301,0.00011105,2]
[334408478,1723050632523,-723.10580785,0.00011105,2]
[334408479,1723050632532,-155.0,0.00011105,2]
[334408480,1723050632540,-155.0,0.00011105,2]
[334408481,1723050632550,-309.16579736,0.00011105,2]
[334408482,1723050632559,-251.2035121,0.00011105,2]
[334408483,1723050632568,-159.54246192,0.00011105,2]
[334408484,1723050632577,-347.54171027,0.00011105,2]
[334408485,1723050632587,-155.0,0.00011105,2]
[334408486,1723050632595,-155.69036707,0.00011105,2]
[334408487,1723050632604,-155.0,0.00011105,2]
[334408488,1723050632613,-380.18011514,0.00011105,2]
[334408489,1723050632623,-454.39810402,0.00011105,2]
[334408490,1723050632638,-401.16988804,0.00011105,2]
[334408491,1723050632647,-330.06238007,0.00011105,2]
[334408492,1723050632657,-297.369235,0.00011105,2]
[334408493,1723050632667,-439.89968088,0.00011105,2]
[334408494,1723050632676,-364.03356845,0.00011105,2]
[334408495,1723050632686,-578.55400603,0.00011105,7]
[334408496,1723050632695,-421.94279451,0.00011105,2]
[334408497,1723050632704,-155.0,0.00011105,2]
[334408498,1723050632713,-2145.03106891,0.00011105,2]
[334408499,1723050632722,-291.99721997,0.00011105,2]
[334408507,1723050637814,-1078.9145425,0.00011105,2]
[334408509,1723050637823,-683.09313258,0.00011105,2]
[334408511,1723050637833,-649.5964416,0.00011105,2]
[334408513,1723050637842,-1275.10393157,0.00011105,2]
[334408515,1723050637852,-228.78384219,0.00011105,2]
[334408517,1723050637862,-772.63340029,0.00011105,2]
[334408519,1723050637872,-476.7534528,0.00011105,2]
[334408521,1723050637882,-472.53438,0.00011105,2]
[334408523,1723050637891,-519.91345954,0.00011105,2]
[334408525,1723050637901,-155.0,0.00011105,2]
[334408527,1723050637911,-6691.47341693,0.00011153,2]
[334408528,1723050637923,-1710.00000005,0.00011153,2]
[334408529,1723050637980,-5364.23869622,0.00011153,2]
[334408530,1723050637989,-3641.35394066,0.00011185,2]
[334408531,1723050638038,-322.82250005,0.00011185,2]
[334408535,1723050640143,-3049.54626485,0.00011185,2]
[334408536,1723050640155,-6087.8,0.00011185,2]
[334408537,1723050640172,-369.0,0.00011185,2]
[334408540,1723050640597,-564.37000001,0.00011185,2]
[334408543,1723050640609,-1480.44053087,0.00011185,2]
[334408544,1723050640620,-356.19588052,0.00011185,2]
[334408545,1723050640635,-3162.20000006,0.00011185,2]
[334408546,1723050640646,-348.33,0.00011185,2]
[334408547,1723050640657,-300.0,0.00011185,2]
[334408548,1723050640668,-2439.14814662,0.00011185,2]
[334408549,1723050640680,-844.56905072,0.00011185,2]
[334408550,1723050640697,-667.4499999,0.00011185,2]
[334408551,1723050640715,-2256.33146258,0.00011185,2]
[334408552,1723050640727,-498.86120004,0.00011185,2]
[334408553,1723050640739,-552.33090042,0.00011185,2]
[334408574,1723050642856,-474.08003579,0.00010799,2]
[334408575,1723050642868,-1913.60066779,0.00010799,2]
[334408576,1723050642916,-3158.60889169,0.00010799,2]
[334408577,1723050642928,-1554.40277295,0.00010799,2]
[334408578,1723050642938,-113.62019813,0.00011185,2]
[334408579,1723050642950,-4531.06312821,0.00011185,2]
[334408580,1723050642959,-4207.93966122,0.00011186,2]
[334408581,1723050642971,-7164.35167377,0.00011186,2]
[334408582,1723050643434,-9320.38997933,0.00011186,2]
[334408583,1723050643445,-579.35,0.00011186,2]
[334408584,1723050643457,-1376.57629804,0.00011186,2]
[334408585,1723050643466,-686.73269963,0.00011206,2]
[334408586,1723050643476,-420.14093132,0.00011489,2]
[334408587,1723050643485,-420.0,0.00011978,2]
[334408588,1723050643495,-218.00866301,0.00012,2]
[334408589,1723050643506,-298.975,0.00012,2]
[334408604,1723050645861,-332.78,0.00012,2]
[334408605,1723050645925,-623.72779138,0.00012,2]
[334408606,1723050645936,-1348.24207892,0.00012,2]
[334408607,1723050645948,-1246.58900404,0.00012,2]
[334408608,1723050645960,-508.5,0.00012,2]
[334408609,1723050645972,-423.17746265,0.00012,2]
[334408610,1723050645982,-741.91,0.00012252,2]
[334408611,1723050645992,-211.62746688,0.00012749,2]
[334408612,1723050646001,-359.26552808,0.00012818,2]
[334408613,1723050646010,-359.26552808,0.00012818,2]
[334408614,1723050646019,-264.38460309,0.00012855,2]
[334408615,1723050646029,-164.33652674,0.00012924,2]
[334408616,1723050646038,-276.24949886,0.00013,2]
[334408617,1723050646049,-80.75050114,0.00013,2]
[334408618,1723050646059,-1000.0,0.00013,2]
[334408619,1723050646069,-587.0,0.00013164,2]
[334408620,1723050646079,-200.0,0.00013216,2]
[334408621,1723050646088,-500.0,0.00013441,2]
[334408622,1723050646099,-500.0,0.00013449,2]
[334408623,1723050646109,-500.0,0.00013458,2]
[334408624,1723050646119,-500.0,0.00013467,2]
[334408625,1723050646130,-500.0,0.00013476,2]
[334408626,1723050646142,-2385.26322028,0.00013483,2]
[334408627,1723050646151,-500.0,0.00013485,2]
[334408628,1723050646161,-500.0,0.00013493,2]
[334408629,1723050646174,-155.0,0.00013499,2]
[334408630,1723050646186,-500.0,0.00013502,2]
[334408631,1723050646195,-500.0,0.00013511,2]
[334408632,1723050646205,-500.0,0.0001352,2]
[334408633,1723050646215,-500.0,0.00013529,2]
[334408634,1723050646225,-500.0,0.00013537,2]
[334408635,1723050646234,-500.0,0.00013546,2]
[334408636,1723050646244,-500.0,0.00013555,2]
[334408637,1723050646256,-500.0,0.00013564,2]
[334408638,1723050646266,-500.0,0.00013573,2]
[334408639,1723050646275,-500.0,0.00013581,2]
[334408640,1723050646285,-500.0,0.0001359,2]
[334408641,1723050646294,-500.0,0.00013599,2]
[334408642,1723050646304,-500.0,0.00013608,2]
[334408643,1723050646313,-500.0,0.00013617,2]
[334408644,1723050646323,-500.0,0.00013625,2]
[334408645,1723050646334,-500.0,0.00013634,2]
[334408646,1723050646344,-500.0,0.00013643,2]
[334408647,1723050646353,-169.77,0.00013699,2]
[334408648,1723050646363,-1852.42,0.00013765,2]
[334408649,1723050646372,-397.56530122,0.00013784,2]
[334408650,1723050646514,-602.43469878,0.00013784,2]
[334408651,1723050646524,-179.67,0.00013834,2]
[334408652,1723050646533,-103.80628352,0.00013892,2]
[334408653,1723050646545,-23796.19371648,0.00013892,2]
[334408654,1723050646554,-4285.64,0.00013915,2]
[334408655,1723050646563,-185.73,0.00013969,2]
[334408656,1723050646572,-164.34,0.00013973,2]
[334408657,1723050646581,-486.78,0.00013973,2]
[334408658,1723050646590,-433.67,0.00013973,2]
[334408659,1723050646599,-160.31,0.00013973,2]
[334408660,1723050646610,-2751.0,0.00013991,2]
[334408661,1723050646619,-250.0,0.00013997,2]
[334408662,1723050646628,-200.0,0.00014077,2]
[334408663,1723050646640,-823.0,0.00014467,2]
[334408664,1723050646649,-741.91,0.00014516,2]
[334408665,1723050646658,-155.0,0.00015,2]
[334408666,1723050646667,-624.10934651,0.00015,2]
[334408667,1723050646676,-1414.0,0.000153,2]
[334408668,1723050646686,-1000.0,0.000153,2]
[334408669,1723050646695,-1000.0,0.00015506,2]
[334408670,1723050646704,-178.13,0.00015831,2]
[334408671,1723050646714,-167.02,0.00015831,2]
[334408672,1723050646723,-1152.0,0.00015899,2]
[334408673,1723050646733,-472.53439,0.00016105,2]
[334408674,1723050646743,-750.0,0.00016438,2]
[334408675,1723050646752,-178.13,0.00016484,2]
[334408676,1723050646762,-835.99260155,0.0001661,2]
[334408677,1723050646774,-927.48379495,0.0001661,2]
[334408678,1723050646784,-10000.0,0.00016686,2]
[334408679,1723050646793,-255.50793707,0.0001678,2]
[334408680,1723050646804,-486.40206293,0.0001678,2]
[334408681,1723050646814,-2630.82659408,0.00016781,7]
[334408682,1723050646826,-6846.23117304,0.00016781,7]
[334408683,1723050646835,-1007.07,0.00016922,2]
[334408684,1723050646844,-723.05679096,0.00016999,2]
[334408685,1723050646853,-300.0,0.00017055,2]
[334408686,1723050646862,-150.0,0.00017055,2]
[334408687,1723050646872,-178.13,0.00017137,2]
[334408688,1723050646881,-1000.0,0.00017229,2]
[334408689,1723050646893,-1405.50443999,0.0001738,2]
[334408690,1723050646902,-185.73,0.00017462,2]
[334408691,1723050646911,-319.64620454,0.00017473,2]
[334408692,1723050646922,-263.93978408,0.00017473,2]
[334408693,1723050646934,-1029.41401138,0.00017473,2]
[334408694,1723050646943,-296.57064862,0.00017508,2]
[334408699,1723051230755,150.0,0.00024507,120]
[334408700,1723051520304,5508.0,9e-05,2]
[334408701,1723051520332,2059.39379522,9e-05,2]
[334408702,1723051556653,5881.25464484,6.94e-05,2]
[334408703,1723051562709,536.13723106,9e-05,2]
[334408704,1723051564479,1633.59875536,9e-05,2]
[334408705,1723051566958,1268.48747637,9e-05,2]
[334408706,1723051571415,3069.74150795,9e-05,2]
[334408707,1723051576523,20385.16897764,9e-05,2]
[334408708,1723051580794,2565.03638578,9e-05,2]
[334408709,1723051583396,411.80469725,9e-05,2]
[334408710,1723051584448,227.67484022,9e-05,2]
[334408711,1723051603492,1309.6907768,9e-05,2]
[334408713,1723051650739,150.0,0.00024412,120]
[334408714,1723051653525,20385.16897764,9e-05,2]
[334408715,1723051654014,507.28858112,9e-05,2]
[334408716,1723051655807,2565.03638578,9e-05,2]
[334408718,1723051687420,3069.74150795,9e-05,2]
[334408720,1723051692403,411.53590374,9e-05,2]
[334408721,1723051696505,1309.6907768,9e-05,2]
[334408723,1723051710899,150.0,0.00023993,120]
[334408835,1723051832257,-498.6429475,0.0001,2]
[334408836,1723051832268,-1026.39824093,0.0001,2]
[334408837,1723051832317,-474.90015879,0.0001,2]
[334408838,1723051832328,-1231.81166515,0.0001,2]
[334408839,1723051832385,-457.29170079,0.0001,2]
[334408840,1723051832446,-1014.69833825,0.0001,2]
[334408854,1723051837999,-796.44791203,0.0001,2]
[334408856,1723051838012,-51.69004684,0.0001,2]
[334408858,1723051838021,-244.83218759,0.000101,2]
[334408860,1723051838031,-300.0,0.00010996,2]
[334408862,1723051838040,-2463.62847823,0.00010997,2]
[334408865,1723051838066,-282.85566774,0.00010997,2]
[334408868,1723051838078,-2855.4686812,0.00010997,2]
[334408870,1723051838088,-1304.84896795,0.00010999,2]
[334408872,1723051838097,-323.04495085,0.00010999,2]
[334408873,1723051838131,-176.95504915,0.00010999,2]
[334408874,1723051838140,-338.51758915,0.00010999,2]
[334408875,1723051838155,-161.48241085,0.00010999,2]
[334408876,1723051838164,-380.85493311,0.00010999,2]
[334408877,1723051838174,-594.54765614,0.00011,2]
[334408878,1723051838185,-408.66224937,0.00011,2]
[334408879,1723051838197,-31090.0,0.00011,2]
[334408880,1723051838251,-553.16,0.00011,2]
[334408881,1723051838263,-20638.83705556,0.00011,2]
[334408882,1723051838315,-55749.99999998,0.00011,2]
[334408883,1723051838327,-37035.55726518,0.00011,2]
[334408884,1723051838338,-46647.67843677,0.00011,2]
[334409245,1723051842399,-397.8,0.00010959,2]
[334409247,1723051842408,-483.56396443,0.00011,2]
[334409253,1723051842459,-658.89701571,0.00011,2]
[334409256,1723051842472,-188024.90530792,0.00011,2]
[334409258,1723051842484,-174157.4475346,0.00011,2]
[334409266,1723051842548,-3341.70954636,0.00011,2]
[334409268,1723051842560,-300.0495264,0.00011,2]
[334409274,1723051842614,-5563.8,0.00011,2]
[334409277,1723051842625,-69948.82056898,0.00011,2]
[334409284,1723051842689,-347.55568211,0.00011,2]
[334409330,1723051843022,-350.62,0.00011,2]
[334409333,1723051843034,-2448.6,0.00011,2]
[334409335,1723051843046,-4783.16,0.00011,2]
[334409337,1723051843057,-1067.81353758,0.00011,2]
[334409339,1723051843069,-455.24917089,0.00011,2]
[334409341,1723051843081,-1031.497246,0.00011,2]
[334409343,1723051843093,-1795.66259684,0.00011,2]
[334409346,1723051843104,-3529.11975385,0.00011,2]
[334409348,1723051843115,-3397.76989014,0.00011,2]
[334409350,1723051843126,-1269.05719409,0.00011,2]
[334409352,1723051843137,-1158.57076106,0.00011,2]
[334409367,1723051843772,-2971.4261541,0.00011,2]
[334409368,1723051843783,-19826.037421,0.00011,2]
[334409369,1723051843795,-24800.007759,0.00011,2]
[334409370,1723051843806,-54452.30290792,0.00011,2]
[334409371,1723051843818,-3162.19953279,0.00011,2]
[334409372,1723051843829,-367.0795866,0.00011,2]
[334409373,1723051843840,-12612.60000007,0.00011,2]
[334409374,1723051843851,-36597.54571064,0.00011,2]
[334409375,1723051843870,-256.17306922,0.00011,2]
[334409376,1723051843882,-8502.84801592,0.00011,2]
[334409377,1723051843893,-511.74477419,0.00011,2]
[334409378,1723051843908,-2498.31440764,0.00011,2]
[334409379,1723051843920,-3642.79917391,0.00011,2]
[334409380,1723051843935,-723.49542968,0.00011,2]